bitfinex/quotes_ETHUSD_20250520
["timestamp","ask_amount","ask_price","bid_price","bid_amount"]
[1747730775768,3.94467726,2535.1,2534.7,8.0]
[1747730775954,3.94449082,2535.2,2534.7,11.94513986]
[1747730776160,4.44425896,2535.4,2534.8,8.0]
[1747730776339,3.94446532,2535.2,2534.8,8.0]
[1747730776540,3.94436084,2535.3,2534.8,11.94508442]
[1747730776741,3.94436084,2535.3,2534.8,31.38741842]
[1747730777049,3.94449444,2535.2,2534.8,26.04427356]
[1747730777248,3.94436084,2535.3,2534.8,26.04427356]
[1747730777249,3.94431941,2535.3,2534.8,30.53935798]
[1747730777450,4.44422612,2535.4,2534.8,30.53935798]
[1747730777969,4.44422612,2535.4,2534.8,30.06840943]
[1747730778656,0.5,2535.4,2535.0,3.94465115]
[1747730778952,0.5,2535.4,2535.1,15.516]
[1747730779154,4.44415269,2535.4,2535.1,15.516]
[1747730779485,4.44415269,2535.4,2535.2,0.37729201]
[1747730779989,0.5,2535.4,2535.2,0.37729201]
[1747730780486,0.5,2535.4,2535.3,0.37729201]
[1747730782182,0.5,2535.4,2535.1,15.516]
[1747730783183,0.5,2535.4,2535.1,17.46207442]
[1747730783369,0.5,2535.4,2535.3,11.94430639]
[1747730783574,0.05,2535.9,2535.3,11.94430639]
[1747730783575,0.05,2535.9,2535.6,3.94371183]
[1747730783749,0.05,2535.9,2535.8,11.94352866]
[1747730784092,0.05,2535.9,2535.8,23.559729]
[1747730784544,0.05,2535.9,2535.8,10.131729]
[1747730784743,0.05,2535.9,2535.8,23.559729]
[1747730784991,0.05,2535.9,2535.8,21.428]
[1747730785375,0.05,2535.9,2535.8,33.90682]
[1747730785700,0.05,2535.9,2535.8,26.470968]
[1747730786241,0.05,2535.9,2535.8,28.47725646]
[1747730786642,0.05,2535.9,2535.8,25.56723446]
[1747730786847,0.05,2535.9,2535.8,21.426]
[1747730787047,0.05,2535.9,2535.8,8.0]
[1747730787244,0.05,2535.9,2535.8,21.425]
[1747730787463,0.05,2535.9,2535.8,8.0]
[1747730787690,3.99337316,2535.9,2535.8,21.425]
[1747730787893,0.05,2535.9,2535.8,26.925985]
[1747730788078,0.05,2535.9,2535.8,32.065129]
[1747730789084,0.05,2535.9,2535.8,36.00865766]
[1747730789890,3.94244684,2536.5,2535.8,36.00865766]
[1747730790197,0.05,2536.9,2536.8,3.94197414]
[1747730790365,3.94127425,2537.3,2536.9,8.0]
[1747730790688,0.5,2537.4,2537.1,8.0]
[1747730791071,0.5,2537.4,2536.9,1.19419741]
[1747730791286,3.94135267,2537.2,2537.1,8.0]
[1747730791473,0.5,2537.4,2537.1,7.51]
[1747730791659,3.94135267,2537.2,2537.1,7.51]
[1747730792187,0.5,2537.4,2537.1,29.10683925]
[1747730792355,4.44105512,2537.4,2537.1,10.04745625]
[1747730792692,0.5,2537.4,2537.1,10.04745625]
[1747730792984,0.5,2537.4,2537.3,3.94119733]
[1747730793289,0.79459142,2537.9,2537.4,8.0]
[1747730793596,3.94042083,2537.8,2537.4,8.0]
[1747730793755,3.94051141,2537.8,2537.5,1.81026288]
[1747730794154,0.79459142,2537.9,2537.5,1.81026288]
[1747730795206,0.79459142,2537.9,2537.5,5.75106157]
[1747730795411,0.79459142,2537.9,2537.5,1.81026288]
[1747730795576,0.79459142,2537.9,2537.3,17.90914074]
[1747730795577,3.94050722,2537.8,2537.6,13.418]
[1747730795924,3.94050722,2537.8,2537.2,8.55]
[1747730796074,0.79459142,2537.9,2537.6,8.0]
[1747730796419,0.79459142,2537.9,2537.8,8.0]
[1747730796420,4.73485699,2537.9,2537.8,8.0]
[1747730796723,4.73485699,2537.9,2537.8,15.506]
[1747730796913,4.73485699,2537.9,2537.8,32.523]
[1747730797078,0.79459142,2537.9,2537.8,47.264715]
[1747730797278,0.79459142,2537.9,2537.8,50.74260683]
[1747730797810,0.79459142,2537.9,2537.8,46.802186]
[1747730797992,0.79459142,2537.9,2537.8,50.74260683]
[1747730798193,0.79459142,2537.9,2537.8,46.52146383]
[1747730798693,0.79459142,2537.9,2537.8,42.581043]
[1747730798882,0.79459142,2537.9,2537.8,32.523]
[1747730799217,0.79459142,2537.9,2537.8,50.127134]
[1747730799400,0.79459142,2537.9,2537.8,29.13474]
[1747730799602,0.79459142,2537.9,2537.8,45.38787083]
[1747730800500,0.79459142,2537.9,2537.8,45.93787083]
[1747730801000,0.79459142,2537.9,2537.8,28.03545]
[1747730801201,0.79459142,2537.9,2537.8,41.44745]
[1747730802290,0.79459142,2537.9,2537.8,41.44645]
[1747730802491,0.79459142,2537.9,2537.8,41.141243]
[1747730802696,0.79459142,2537.9,2537.8,25.017]
[1747730802911,4.73485699,2537.9,2537.8,24.521]
[1747730803112,4.73485699,2537.9,2537.8,17.017]
[1747730803487,4.73485699,2537.9,2537.8,24.521]
[1747730803820,4.73485699,2537.9,2537.8,17.017]
[1747730803989,4.73485699,2537.9,2537.8,24.521]
[1747730804190,3.94104201,2537.4,2537.3,0.46962714]
[1747730804399,3.94104201,2537.4,2537.3,24.516]
[1747730804799,3.94104201,2537.4,2537.3,17.012]
[1747730805820,3.94104201,2537.4,2537.3,24.516]
[1747730806212,3.94104201,2537.4,2537.3,17.012]
[1747730806415,4.72923552,2537.4,2537.3,17.012]
[1747730806626,3.94181875,2536.9,2536.8,0.46962714]
[1747730806824,3.94181875,2536.9,2536.8,7.97362714]
[1747730807192,3.94181875,2536.9,2536.8,0.46962714]
[1747730807391,3.94181875,2536.9,2536.8,7.504]
[1747730808035,3.94228494,2536.6,2536.5,17.011]
[1747730808327,3.94228494,2536.6,2536.5,24.88853626]
[1747730808991,3.94228494,2536.6,2536.5,17.38353626]
[1747730809195,3.94228494,2536.6,2536.5,24.88853626]
[1747730810024,3.94228494,2536.6,2536.5,17.38353626]
[1747730810217,3.94228494,2536.6,2536.5,24.88853626]
[1747730810720,3.94228494,2536.6,2536.5,17.38353626]
[1747730810913,3.94228494,2536.6,2536.5,24.88853626]
[1747730810914,4.73072881,2536.6,2536.5,24.88853626]
[1747730811227,3.94228494,2536.6,2536.5,24.88853626]
[1747730813521,3.94228494,2536.6,2536.5,0.37253626]
[1747730813725,3.94199015,2536.8,2536.5,0.37253626]
[1747730814023,3.94228494,2536.6,2536.5,0.37253626]
[1747730814426,3.94228494,2536.6,2536.5,0.8421634]
[1747730814728,3.94228494,2536.6,2536.5,25.3641634]
[1747730815103,3.94228494,2536.6,2536.5,0.8421634]
[1747730815822,4.73072939,2536.6,2536.5,0.8421634]
[1747730816343,4.73072939,2536.6,2536.5,25.3641634]
[1747730816931,4.73072939,2536.6,2536.5,24.89453626]
[1747730818249,3.94228494,2536.6,2536.5,24.89453626]
[1747730820228,3.94228494,2536.6,2536.5,25.3641634]
[1747730820547,3.94228494,2536.6,2536.5,25.4181634]
[1747730821111,4.49228494,2536.6,2536.5,25.4181634]
[1747730821650,5.09228494,2536.6,2536.5,24.576]
[1747730821939,5.99572939,2536.6,2536.5,24.576]
[1747730823445,5.44572939,2536.6,2536.5,24.576]
[1747730825454,5.99572939,2536.6,2536.5,24.576]
[1747730825832,5.44572939,2536.6,2536.5,24.576]
[1747730826231,5.99572939,2536.6,2536.5,24.576]
[1747730826630,5.39572939,2536.6,2536.5,24.576]
[1747730827044,5.39572939,2536.6,2536.5,24.577]
[1747730827485,5.39572939,2536.6,2535.7,25.05162714]
[1747730827486,3.94352866,2535.8,2535.7,25.05162714]
[1747730829136,3.94352866,2535.8,2535.7,24.95645255]
[1747730829728,3.94352866,2535.8,2535.7,17.39545255]
[1747730829959,3.94352866,2535.8,2535.7,24.95745255]
[1747730836767,3.94352866,2535.8,2535.7,24.583]
[1747730840182,3.94352866,2535.8,2535.7,17.021]
[1747730840369,5.12654392,2535.8,2535.7,24.584]
[1747730843299,5.12654392,2535.8,2535.7,17.021]
[1747730843597,5.12654392,2535.8,2535.7,24.584]
[1747730845280,5.12654392,2535.8,2535.7,24.585]
[1747730846463,3.94352866,2535.8,2535.7,24.585]
[1747730846861,3.94352866,2535.8,2535.7,32.585]
[1747730847175,3.94352866,2535.8,2535.7,17.021]
[1747730847378,3.94352866,2535.8,2535.7,24.585]
[1747730850106,3.94352866,2535.8,2535.7,24.562]
[1747730850313,4.73221884,2535.8,2535.7,24.562]
[1747730851611,3.94352866,2535.8,2535.7,24.562]
[1747730855485,3.94352866,2535.8,2535.7,24.93836611]
[1747730858414,3.94352866,2535.8,2535.7,17.39736611]
[1747730858619,3.94352866,2535.8,2535.7,30.84936611]
[1747730858786,3.94352866,2535.8,2535.7,24.93836611]
[1747730858988,3.94352866,2535.8,2535.7,30.84936611]
[1747730864627,3.94352866,2535.8,2535.7,17.39736611]
[1747730864937,3.94352866,2535.8,2535.7,24.93836611]
[1747730865114,4.73221884,2535.8,2535.7,24.93836611]
[1747730867439,4.73221884,2535.8,2535.7,24.562]
[1747730868236,3.94352866,2535.8,2535.7,24.562]
[1747730874241,3.94352866,2535.8,2535.7,17.021]
[1747730874421,3.94352866,2535.8,2535.7,24.562]
[1747730874625,4.49352866,2535.8,2535.7,24.562]
[1747730876019,14.03183589,2535.8,2535.7,24.562]
[1747730876219,15.8293568,2535.8,2535.7,24.562]
[1747730878115,15.8293568,2535.8,2535.7,17.021]
[1747730878424,14.29104957,2535.8,2535.7,17.021]
[1747730880649,13.74104957,2535.8,2535.7,17.021]
[1747730880829,3.94352866,2535.8,2535.7,17.021]
[1747730882556,6.03183589,2535.8,2535.7,24.557]
[1747730883037,4.49352866,2535.8,2535.7,24.557]
[1747730883242,3.94352866,2535.8,2535.7,24.557]
[1747730884766,3.94352866,2535.8,2535.7,24.93389833]
[1747730885658,3.94352866,2535.8,2535.7,35.47425088]
[1747730887563,3.94305804,2536.2,2535.8,8.0]
[1747730887789,3.94316148,2536.1,2536.0,8.0]
[1747730888075,3.94316148,2536.1,2536.0,9.3911]
[1747730888277,3.94316148,2536.1,2536.0,9.76799833]
[1747730889062,3.94288025,2536.3,2536.0,9.76799833]
[1747730889262,3.94292959,2536.2,2536.0,9.76799833]
[1747730889563,3.94292959,2536.2,2536.1,0.37689833]
[1747730889788,3.94292959,2536.2,2536.1,2.03173092]
[1747730890200,3.94292959,2536.2,2536.1,13.82289833]
[1747730891700,3.94292959,2536.2,2536.1,13.446]
[1747730892074,3.94292959,2536.2,2536.1,21.446]
[1747730893071,3.94135267,2537.2,2536.2,8.0]
[1747730893287,3.94252458,2536.5,2536.2,8.0]
[1747730893480,3.94204316,2536.8,2536.4,8.0]
[1747730893694,3.94204316,2536.8,2536.3,2.1446]
[1747730893869,3.94184296,2536.9,2536.4,8.0]
[1747730894199,3.94023734,2538.0,2536.5,36.004955]
[1747730894375,3.94152229,2537.1,2536.4,0.84566084]
[1747730894575,3.94221103,2536.7,2536.5,22.54402608]
[1747730894799,3.94221103,2536.7,2536.6,8.0]
[1747730894977,3.94179419,2537.0,2536.6,17.69065]
[1747730895179,3.94188663,2536.9,2536.7,17.021]
[1747730895392,3.94197414,2536.8,2536.7,25.021]
[1747730895588,3.94197414,2536.8,2536.7,27.8743368]
[1747730895975,3.94197414,2536.8,2536.7,28.2503705]
[1747730896376,3.94197414,2536.8,2536.7,38.8400337]
[1747730897304,3.94197414,2536.8,2536.7,25.3970337]
[1747730897603,3.94197414,2536.8,2536.7,32.9300337]
[1747730898679,3.94197414,2536.8,2536.7,17.3970337]
[1747730898901,3.94197414,2536.8,2536.7,24.554]
[1747730899410,3.94197414,2536.8,2536.7,17.021]
[1747730899713,3.94197414,2536.8,2536.7,24.554]
[1747730900207,3.94197414,2536.8,2536.7,35.0094]
[1747730900900,3.94197414,2536.8,2536.7,32.554]
[1747730901675,3.94197414,2536.8,2536.7,34.861208]
[1747730901897,3.94197414,2536.8,2536.7,32.554]
[1747730902400,3.94197414,2536.8,2536.7,25.021]
[1747730902593,3.94197414,2536.8,2536.7,38.462]
[1747730905598,3.94197414,2536.8,2536.7,32.553]
[1747730905920,3.94197414,2536.8,2536.7,38.462]
[1747730906808,3.94055547,2537.8,2536.8,8.0]
[1747730906999,3.94162739,2537.1,2536.8,8.0]
[1747730907194,3.94178895,2537.0,2536.8,8.0]
[1747730907523,3.94181875,2536.9,2536.8,8.0]
[1747730907723,3.94181875,2536.9,2536.8,21.441]
[1747730909720,3.94181875,2536.9,2536.8,21.81617894]
[1747730910089,3.94172347,2537.0,2536.8,21.81617894]
[1747730910524,3.94153753,2537.1,2536.8,21.81617894]
[1747730910705,3.94149396,2537.2,2536.8,21.81617894]
[1747730910909,3.94149396,2537.2,2536.9,0.37517894]
[1747730911308,3.94150877,2537.1,2536.9,0.37517894]
[1747730912325,3.94147879,2537.2,2536.9,0.37517894]
[1747730913098,3.94088669,2537.5,2536.9,0.37517894]
[1747730913626,3.94042083,2537.8,2536.9,0.37517894]
[1747730913627,3.94042083,2537.8,2537.0,8.03941446]
[1747730913796,3.94125896,2537.3,2536.9,8.37517894]
[1747730913993,3.94125896,2537.3,2537.0,2.5758061]
[1747730914523,3.94092155,2537.5,2537.0,2.5758061]
[1747730914729,3.94104201,2537.4,2537.1,0.37517894]
[1747730914926,3.94120184,2537.3,2537.1,0.37517894]
[1747730915126,3.94135267,2537.2,2537.1,0.37517894]
[1747730915428,3.94135267,2537.2,2537.1,21.86017894]
[1747730916202,3.94135267,2537.2,2537.1,8.37517894]
[1747730916624,3.94135267,2537.2,2537.1,15.95217894]
[1747730916830,3.94135267,2537.2,2537.1,8.37517894]
[1747730917125,3.94135267,2537.2,2537.1,7.95217894]
[1747730918033,3.94135267,2537.2,2537.1,7.577]
[1747730920446,3.94197414,2536.8,2536.7,25.021]
[1747730920614,3.94197414,2536.8,2536.7,24.598]
[1747730921349,3.94197414,2536.8,2536.7,32.598]
[1747730921749,3.94197414,2536.8,2536.7,24.598]
[1747730921953,3.94197414,2536.8,2536.7,32.97425062]
[1747730922646,3.94197414,2536.8,2536.7,25.39725062]
[1747730922861,3.94197414,2536.8,2536.7,32.97425062]
[1747730930254,3.94197414,2536.8,2536.7,33.44387776]
[1747730932951,3.94197414,2536.8,2536.7,39.35187776]
[1747730935066,3.94197414,2536.8,2536.7,38.88225062]
[1747730935262,3.94197414,2536.8,2536.7,32.97425062]
[1747730935566,3.94197414,2536.8,2536.7,24.97425062]
[1747730935874,4.73035372,2536.8,2536.7,24.97425062]
[1747730936965,6.81866095,2536.8,2536.7,24.97525062]
[1747730937846,5.28035372,2536.8,2536.7,24.97525062]
[1747730938046,6.81866095,2536.8,2536.7,24.97525062]
[1747730938379,6.81866095,2536.8,2536.7,24.599]
[1747730938950,5.28035372,2536.8,2536.7,24.599]
[1747730942247,6.81866095,2536.8,2536.7,24.599]
[1747730942757,16.72544223,2536.8,2536.7,17.021]
[1747730944462,24.72544223,2536.8,2536.7,17.021]
[1747730944771,3.94228494,2536.6,2536.5,7.535]
[1747730944973,15.84464782,2536.6,2536.5,7.535]
[1747730945968,17.38295505,2536.6,2536.5,7.535]
[1747730946167,11.94321766,2536.0,2535.9,17.019]
[1747730946370,11.94321766,2536.0,2535.9,24.555]
[1747730949168,3.94321766,2536.0,2535.9,24.555]
[1747730949369,4.73184907,2536.0,2535.9,24.555]
[1747730955641,6.8201563,2536.0,2535.9,24.555]
[1747730955848,6.8201563,2536.0,2535.9,24.556]
[1747730958853,5.28184907,2536.0,2535.9,24.556]
[1747730959050,4.73184907,2536.0,2535.9,24.556]
[1747730959254,3.94321766,2536.0,2535.9,24.556]
[1747730960496,4.73044639,2536.8,2535.9,24.556]
[1747730960497,3.94150802,2537.1,2535.9,38.467]
[1747730960795,3.94296953,2536.2,2535.9,38.467]
[1747730961168,3.94166338,2537.0,2536.0,8.0]
[1747730961380,3.94259589,2536.4,2536.0,8.0]
[1747730961589,3.94259589,2536.4,2536.0,11.94320438]
[1747730961773,3.94268072,2536.4,2536.1,0.37421814]
[1747730962097,3.94279869,2536.3,2536.1,0.37421814]
[1747730962409,3.94290671,2536.2,2536.1,0.37421814]
[1747730962561,3.94290671,2536.2,2536.1,13.82221814]
[1747730964080,3.94290671,2536.2,2536.1,0.37421814]
[1747730964283,3.94290671,2536.2,2536.1,7.537]
[1747730967363,3.94290671,2536.2,2536.1,15.537]
[1747730968701,3.94290671,2536.2,2536.1,7.91191355]
[1747730969867,3.94290671,2536.2,2536.1,7.537]
[1747730970471,3.94321766,2536.0,2535.9,17.019]
[1747730970663,3.94321766,2536.0,2535.9,24.557]
[1747730989107,3.94321766,2536.0,2535.9,24.558]
[1747730993495,11.12,2537.4,2535.9,32.95875034]
[1747730993674,1.0,2537.4,2536.0,8.039424]
[1747730993999,3.94290671,2536.2,2536.1,11.29981743]
[1747730994187,3.94290671,2536.2,2536.1,8.0]
[1747730994388,3.94290671,2536.2,2536.1,15.539]
[1747730994591,3.94290671,2536.2,2536.1,8.0]
[1747730994792,3.94290671,2536.2,2536.1,7.91480173]
[1747730996107,3.94290671,2536.2,2536.1,7.539]
[1747730997237,3.94290671,2536.2,2535.9,17.019]
[1747730997386,3.94321766,2536.0,2535.9,17.019]
[1747730997586,3.94321766,2536.0,2535.9,24.557]
[1747730997805,3.94321766,2536.0,2535.9,24.9331979]
[1747730998521,3.94321766,2536.0,2535.9,17.3951979]
[1747730998732,5.12613911,2536.0,2535.9,17.3951979]
[1747730999102,5.12613911,2536.0,2535.9,24.9331979]
[1747730999819,5.12613911,2536.0,2535.9,24.557]
[1747731001103,3.94321766,2536.0,2535.9,24.557]
[1747731001507,3.94299486,2536.2,2536.0,8.0]
[1747731001760,3.94072683,2537.7,2536.0,8.0]
[1747731002029,3.94306218,2536.1,2536.0,8.0]
[1747731002526,3.94306218,2536.1,2536.0,8.37623549]
[1747731004132,3.94292336,2536.2,2536.0,11.66955904]
[1747731004891,3.94292336,2536.2,2536.1,0.37623549]
[1747731005330,3.94290671,2536.2,2536.1,0.37623549]
[1747731011653,3.94195123,2536.9,2536.1,0.37623549]
[1747731011654,3.9426247,2536.4,2536.1,0.37623549]
[1747731011949,3.94290671,2536.2,2536.1,0.37623549]
[1747731012250,3.94290671,2536.2,2536.1,8.0]
[1747731013147,3.94278864,2536.3,2536.1,8.0]
[1747731013354,3.94278864,2536.3,2536.1,8.3755911]
[1747731013526,3.9421969,2536.7,2536.1,8.3755911]
[1747731013845,3.94290671,2536.2,2536.1,8.3755911]
[1747731014257,3.94290671,2536.2,2536.1,14.2855911]
[1747731017450,3.94290671,2536.2,2536.1,8.3755911]
[1747731017653,3.94290671,2536.2,2536.1,0.3755911]
[1747731018025,3.94321766,2536.0,2535.9,17.019]
[1747731020959,3.94321766,2536.0,2535.9,25.019]
[1747731021159,3.94302199,2536.2,2535.9,34.1854]
[1747731021457,3.94304397,2536.2,2535.9,34.1854]
[1747731021661,3.94308143,2536.1,2535.9,30.929]
[1747731021862,3.94321766,2536.0,2535.9,25.019]
[1747731022063,3.94321766,2536.0,2535.9,24.565]
[1747731023377,4.73184757,2536.0,2535.9,17.019]
[1747731023531,4.73184757,2536.0,2535.9,24.565]
[1747731026688,5.28184757,2536.0,2535.9,24.565]
[1747731027189,5.28184757,2536.0,2535.9,17.019]
[1747731027395,3.94446197,2535.2,2535.1,0.05]
[1747731027541,4.73334197,2535.2,2535.1,7.596]
[1747731029342,3.94446197,2535.2,2535.1,7.596]
[1747731030851,4.49446197,2535.2,2535.1,7.596]
[1747731033497,3.94446197,2535.2,2535.1,7.596]
[1747731038608,3.94446197,2535.2,2535.1,7.597]
[1747731047116,3.94446197,2535.2,2535.1,0.05]
[1747731047410,3.94446197,2535.2,2535.1,7.597]
[1747731047411,4.73334197,2535.2,2535.1,7.597]
[1747731051433,3.94446197,2535.2,2535.1,7.597]
[1747731051789,3.94446197,2535.2,2535.1,15.597]
[1747731052741,3.94446197,2535.2,2535.1,15.97348174]
[1747731058428,3.94446197,2535.2,2535.1,15.97248174]
[1747731058629,3.94446197,2535.2,2535.1,7.97248174]
[1747731058930,4.73333896,2535.2,2535.1,7.97248174]
[1747731059110,3.94446197,2535.2,2535.1,7.596]
[1747731064847,4.49446197,2535.2,2535.1,7.574]
[1747731065672,14.61446197,2535.2,2535.1,7.574]
[1747731067458,3.94446197,2535.2,2535.1,7.574]
[1747731069584,3.94446197,2535.2,2535.1,0.05]
[1747731069585,4.49446197,2535.2,2535.1,0.05]
[1747731069755,4.49446197,2535.2,2535.1,7.574]
[1747731069756,7.89038847,2535.2,2535.1,7.574]
[1747731071381,15.89038847,2535.2,2535.1,0.05]
[1747731071690,26.01038847,2535.2,2535.1,0.05]
[1747731072392,16.47033896,2535.2,2535.1,0.05]
[1747731074178,17.07033896,2535.2,2535.1,0.05]
[1747731074878,25.07033896,2535.2,2535.1,0.05]
[1747731075071,17.07033896,2535.2,2535.1,0.05]
[1747731075644,25.07033896,2535.2,2535.1,0.05]
[1747731078243,29.21833896,2535.2,2535.1,0.05]
[1747731078675,30.75838847,2535.2,2535.1,0.05]
[1747731079477,4.49601846,2534.2,2534.1,24.606]
[1747731079688,5.3402098,2534.2,2534.1,24.606]
[1747731079980,3.94601846,2534.2,2534.1,24.606]
[1747731083971,4.49601846,2534.2,2534.1,24.606]
[1747731084587,3.94601846,2534.2,2534.1,24.606]
[1747731088110,3.94601846,2534.2,2534.1,24.607]
[1747731102262,3.94601846,2534.2,2534.1,17.081]
[1747731102460,4.7352098,2534.2,2534.1,24.647]
[1747731103165,5.2852098,2534.2,2534.1,24.647]
[1747731104347,4.7352098,2534.2,2534.1,24.647]
[1747731106716,5.2852098,2534.2,2534.1,24.647]
[1747731107161,16.89525931,2534.2,2534.1,17.081]
[1747731107461,17.49525931,2534.2,2534.1,0.05]
[1747731108621,25.49525931,2534.2,2534.1,0.05]
[1747731116670,29.64325931,2534.2,2534.1,0.05]
[1747731120978,31.18330882,2534.2,2534.1,0.05]
[1747731121283,31.18330882,2534.2,2534.1,0.0491]
[1747731121284,33.55030882,2534.2,2534.1,0.0491]
[1747731121487,4.49757618,2533.2,2533.1,0.05]
[1747731121779,4.49757618,2533.2,2532.1,0.52009906]
[1747731121780,3.94913513,2532.2,2532.1,0.52009906]
[1747731121940,4.49913513,2532.2,2532.1,0.05]
[1747731122135,3.94913513,2532.2,2532.1,1.05]
[1747731122577,3.94913513,2532.2,2532.1,8.619]
[1747731122944,4.49913513,2532.2,2532.1,8.619]
[1747731123143,5.49795409,2532.2,2532.1,8.619]
[1747731123344,4.94795409,2532.2,2532.1,8.619]
[1747731123646,3.94913513,2532.2,2532.1,8.619]
[1747731127004,3.94773202,2533.1,2532.1,8.619]
[1747731127170,3.94897918,2532.3,2532.2,25.046]
[1747731127375,3.94867264,2532.5,2532.2,25.046]
[1747731127571,3.94861073,2532.6,2532.4,8.0]
[1747731127777,3.94866732,2532.5,2532.4,8.0]
[1747731128368,3.94866732,2532.5,2532.4,15.555]
[1747731128868,3.94866732,2532.5,2532.4,16.14086288]
[1747731130812,3.94866732,2532.5,2532.4,15.555]
[1747731132134,3.94885229,2532.4,2532.3,8.0]
[1747731132404,3.94885229,2532.4,2532.3,15.555]
[1747731134186,3.94885229,2532.4,2532.3,21.473]
[1747731135604,3.94897918,2532.3,2532.2,17.046]
[1747731135806,5.13363196,2532.3,2532.2,24.601]
[1747731136337,3.94897918,2532.3,2532.2,24.601]
[1747731138038,3.94897918,2532.3,2532.2,17.046]
[1747731138194,3.94897918,2532.3,2532.2,24.601]
[1747731138797,3.94869636,2532.5,2532.2,24.601]
[1747731138798,3.94869726,2532.5,2532.2,24.601]
[1747731139029,3.94882325,2532.4,2532.3,2.5651]
[1747731139198,3.94897918,2532.3,2532.2,24.601]
[1747731141033,3.94897918,2532.3,2532.2,30.52]
[1747731142001,3.94897918,2532.3,2532.2,24.601]
[1747731142850,3.94897918,2532.3,2532.2,17.046]
[1747731143050,3.94897918,2532.3,2532.2,24.601]
[1747731143194,4.73875942,2532.3,2532.2,24.601]
[1747731145515,4.73875942,2532.3,2532.2,17.046]
[1747731147107,5.28875942,2532.3,2532.2,17.046]
[1747731147942,4.49913513,2532.2,2532.1,8.606]
[1747731149919,4.49913513,2532.2,2532.1,1.05]
[1747731150118,5.81780691,2532.2,2532.1,1.05]
[1747731150325,13.81780691,2532.2,2532.1,1.05]
[1747731151245,23.88780691,2532.2,2532.1,1.05]
[1747731155525,15.88780691,2532.2,2532.1,1.05]
[1747731156033,17.43136222,2532.2,2532.1,1.05]
[1747731156233,15.88780691,2532.2,2532.1,1.05]
[1747731170211,23.88780691,2532.2,2532.1,1.05]
[1747731171877,15.88780691,2532.2,2532.1,1.05]
[1747731172071,15.33780691,2532.2,2532.1,1.05]
[1747731172590,14.01913513,2532.2,2532.1,1.05]
[1747731178213,3.94913513,2532.2,2532.1,1.05]
[1747731181729,3.94913513,2532.2,2532.1,8.598]
[1747731182022,3.94913513,2532.2,2532.1,1.05]
[1747731182192,4.49913513,2532.2,2532.1,1.05]
[1747731182382,23.96318442,2532.2,2532.1,1.05]
[1747731183229,23.96318442,2532.2,2531.1,7.598]
[1747731183230,3.95069532,2531.2,2531.1,7.598]
[1747731184783,4.89958854,2531.2,2531.1,0.05]
[1747731185117,6.69671516,2531.2,2531.1,0.05]
[1747731186897,4.34958854,2531.2,2531.1,0.05]
[1747731189921,4.89958854,2531.2,2531.1,0.05]
[1747731190282,14.96958854,2531.2,2531.1,0.05]
[1747731192826,16.51314385,2531.2,2531.1,0.03]
[1747731193327,14.41958854,2531.2,2531.1,0.03]
[1747731194684,14.02069532,2531.2,2531.1,0.03]
[1747731196462,3.95069532,2531.2,2531.1,0.03]
[1747731207572,3.95069532,2531.2,2531.1,7.569]
[1747731208491,3.95069532,2531.2,2531.1,0.03]
[1747731208695,3.95069532,2531.2,2531.1,7.569]
[1747731209701,3.95069532,2531.2,2531.1,8.3259]
[1747731209863,3.95069532,2531.2,2531.1,16.3259]
[1747731210061,3.95044345,2531.4,2531.2,8.0]
[1747731210286,3.95054908,2531.3,2531.2,8.0]
[1747731210471,3.95060905,2531.3,2531.1,8.3259]
[1747731210802,3.95060905,2531.3,2531.2,0.83259]
[1747731211477,3.95060905,2531.3,2531.1,8.3259]
[1747731211478,3.95069532,2531.2,2531.1,0.7869]
[1747731211676,3.95069532,2531.2,2531.1,0.03]
[1747731211880,3.95069532,2531.2,2531.1,13.49]
[1747731212183,3.95069532,2531.2,2531.1,7.568]
[1747731214403,3.95069532,2531.2,2531.1,0.03]
[1747731216005,4.50069532,2531.2,2531.1,0.03]
[1747731216206,7.43877994,2531.2,2531.1,0.03]
[1747731217011,5.89522463,2531.2,2531.1,0.03]
[1747731218486,5.34522463,2531.2,2531.1,0.03]
[1747731219580,13.34522463,2531.2,2531.1,0.03]
[1747731220397,13.89522463,2531.2,2531.1,0.03]
[1747731222725,15.43877994,2531.2,2531.1,0.03]
[1747731226323,25.50877994,2531.2,2531.1,0.03]
[1747731230427,24.95877994,2531.2,2531.1,0.03]
[1747731230725,25.50877994,2531.2,2531.1,0.03]
[1747731233940,24.95877994,2531.2,2531.1,0.03]
[1747731236446,23.96522463,2531.2,2531.1,0.03]
[1747731236598,23.41522463,2531.2,2531.1,0.03]
[1747731236943,14.02069532,2531.2,2531.1,0.03]
[1747731238102,14.57069532,2531.2,2531.1,0.03]
[1747731239142,3.95253707,2530.1,2529.2,4.94529711]
[1747731239343,3.95257263,2530.0,2529.8,10.172674]
[1747731239546,3.9527254,2529.9,2529.8,7.538]
[1747731239744,3.9527254,2529.9,2529.8,8.33880991]
[1747731240250,3.9527254,2529.9,2529.8,14.26280991]
[1747731240542,3.9527254,2529.9,2529.8,0.80080991]
[1747731240721,3.9527254,2529.9,2529.8,13.83877748]
[1747731241120,3.9527254,2529.9,2529.8,21.83877748]
[1747731241739,3.9527254,2529.9,2529.8,15.91477748]
[1747731244889,3.95257263,2530.0,2529.9,8.0]
[1747731245330,3.95257263,2530.0,2529.9,25.061]
[1747731245532,3.95257263,2530.0,2529.9,28.35857775]
[1747731246441,3.95257263,2530.0,2529.9,28.73635523]
[1747731250216,3.95257263,2530.0,2529.9,32.97277748]
[1747731253356,3.95257263,2530.0,2529.9,24.97277748]
[1747731256556,3.95257263,2530.0,2529.9,24.595]
[1747731265722,3.95257263,2530.0,2529.9,32.595]
[1747731266030,3.95257263,2530.0,2529.9,32.97346892]
[1747731266520,3.95257263,2530.0,2529.9,36.27081581]
[1747731266705,3.95242969,2530.1,2529.9,36.27081581]
[1747731266882,3.95256916,2530.0,2529.9,36.27081581]
[1747731271600,3.95247869,2530.1,2530.0,8.0]